fUSD/lending_fUSD_20251228
["ID","MTS","AMOUNT","RATE_DAILY","PERIOD"]
[399925848,1766880657558,-500.0,0.0003589,9]
[399925849,1766880657571,-237.28124088,0.0003589,9]
[399925850,1766880657585,-400.0,0.0003589,9]
[399925851,1766880657597,-400.0,0.0003589,9]
[399925852,1766880657608,-400.0,0.0003589,9]
[399925853,1766880657620,-500.0,0.0003589,9]
[399925854,1766880657631,-400.0,0.0003589,9]
[399925855,1766880657642,-500.0,0.0003589,9]
[399925856,1766880657653,-600.0,0.0003589,9]
[399925857,1766880657664,-500.0,0.0003589,9]
[399925858,1766880657676,-400.0,0.0003589,9]
[399925859,1766880657689,-500.0,0.0003589,9]
[399925860,1766880657701,-303.23252351,0.0003589,9]
[399925861,1766880657713,-400.0,0.0003589,9]
[399925862,1766880657726,-500.0,0.0003589,9]
[399925863,1766880657738,-500.0,0.0003589,9]
[399925864,1766880657751,-500.0,0.0003589,9]
[399925865,1766880657763,-400.0,0.0003589,9]
[399925866,1766880657775,-500.0,0.0003589,9]
[399925867,1766880657788,-69889.30810815,0.00036,2]
[399925868,1766880657800,-55956.49849082,0.00036,2]
[399925869,1766880657813,-659.86,0.00036137,2]
[399925870,1766880657825,-659.86,0.00036137,2]
[399925871,1766880657837,-659.86,0.00036137,2]
[399925872,1766880657849,-659.86,0.00036137,2]
[399925873,1766880657860,-659.86,0.00036137,2]
[399925874,1766880657874,-659.86,0.00036137,2]
[399925875,1766880657886,-659.86,0.00036137,2]
[399925876,1766880657897,-659.86,0.00036137,2]
[399925877,1766880657910,-659.86,0.00036137,2]
[399925878,1766880657922,-659.86,0.00036137,2]
[399925879,1766880657932,-659.86,0.00036137,2]
[399925880,1766880657944,-659.86,0.00036137,2]
[399925881,1766880657957,-659.86,0.00036137,2]
[399925882,1766880657969,-659.86,0.00036137,2]
[399925883,1766880657981,-659.86,0.00036137,2]
[399925884,1766880657993,-659.86,0.00036137,2]
[399925885,1766880658004,-659.86,0.00036137,2]
[399925886,1766880658017,-659.86,0.00036137,2]
[399925887,1766880658031,-659.86,0.00036137,2]
[399925888,1766880658044,-659.86,0.00036137,2]
[399925889,1766880658055,-659.86,0.00036137,2]
[399925890,1766880658068,-659.86,0.00036137,2]
[399925891,1766880658080,-659.86,0.00036137,2]
[399925892,1766880658091,-659.86,0.00036137,2]
[399925893,1766880658104,-659.86,0.00036137,2]
[399925894,1766880658114,-659.86,0.00036137,2]
[399925895,1766880658125,-659.86,0.00036137,2]
[399925896,1766880658135,-659.86,0.00036137,2]
[399925897,1766880658147,-659.86,0.00036137,2]
[399925898,1766880658157,-659.86,0.00036137,2]
[399925899,1766880658169,-659.86,0.00036137,2]
[399925900,1766880658182,-290.8,0.00036137,2]
[399925901,1766880658195,-219.18904261,0.00036164,9]
[399925902,1766880658208,-300.0,0.00036164,9]
[399925903,1766880658219,-500.0,0.00036164,9]
[399925904,1766880658229,-500.0,0.00036164,9]
[399925905,1766880658240,-500.0,0.00036164,9]
[399925906,1766880658250,-500.0,0.00036356,14]
[399925907,1766880658261,-500.0,0.00036356,14]
[399925908,1766880658272,-500.0,0.00036356,14]
[399925909,1766880658284,-894.7,0.00036428,5]
[399925910,1766880658295,-500.0,0.00036438,9]
[399925911,1766880658308,-500.0,0.00036438,9]
[399925912,1766880658320,-500.0,0.00036438,9]
[399925913,1766880658332,-1100.36,0.000365,2]
[399925914,1766880658343,-2064.24,0.000366,14]
[399925915,1766880658354,-1000.0,0.00036649,7]
[399925916,1766880658365,-1000.0,0.00036686,7]
[399925917,1766880658376,-1000.0,0.00036696,7]
[399925918,1766880658386,-500.0,0.00036712,9]
[399925919,1766880658398,-999.0,0.00036712,120]
[399925920,1766880658409,-500.0,0.00036712,9]
[399925921,1766880658421,-500.0,0.00036712,9]
[399925922,1766880658432,-1205.66,0.00036712,2]
[399925923,1766880658443,-1000.0,0.00036827,7]
[399925924,1766880658454,-3982.99862918,0.0003686,2]
[399925925,1766880658465,-1000.0,0.00036873,7]
[399925926,1766880658476,-266.57,0.000369,14]
[399925927,1766880658488,-1000.0,0.00036919,7]
[399925928,1766880658499,-25000.0,0.00036924,10]
[399925929,1766880658510,-1000.0,0.0003693,7]
[399925930,1766880658520,-25000.0,0.00036933,10]
[399925931,1766880658531,-25000.0,0.00036942,10]
[399925932,1766880658543,-25000.0,0.00036951,10]
[399925933,1766880658557,-25000.0,0.0003696,10]
[399925934,1766880658569,-25000.0,0.00036968,10]
[399925935,1766880658580,-400.0,0.0003697,2]
[399925936,1766880658591,-1000.0,0.0003697,7]
[399925937,1766880658603,-25000.0,0.00036977,10]
[399925938,1766880658614,-25000.0,0.00036986,10]
[399925939,1766880658625,-25000.0,0.00036986,10]
[399925940,1766880658637,-25000.0,0.00036986,10]
[399925941,1766880658648,-25000.0,0.00036986,10]
[399925942,1766880658659,-500.0,0.00036986,9]
[399925943,1766880658670,-500.0,0.00036986,9]
[399925944,1766880658681,-500.0,0.00036986,9]
[399925945,1766880658691,-1000.0,0.00036999,7]
[399925946,1766880658702,-1000.0,0.00037,7]
[399925947,1766880658713,-1000.0,0.00037032,7]
[399925948,1766880658724,-1000.0,0.00037077,7]
[399925949,1766880658735,-1000.0,0.00037237,7]
[399925950,1766880658746,-500.0,0.0003726,9]
[399925951,1766880658757,-500.0,0.0003726,9]
[399925952,1766880658768,-500.0,0.0003726,9]
[399925953,1766880658779,-1099.0,0.00037267,5]
[399925954,1766880658791,-1000.0,0.00037273,7]
[399925955,1766880658801,-300.0,0.00037327,2]
[399925956,1766880658813,-1000.0,0.0003734,7]
[399925957,1766880658823,-1000.0,0.00037352,7]
[399925958,1766880658834,-1100.36,0.000374,2]
[399925959,1766880658844,-1000.0,0.00037415,7]
[399925960,1766880658855,-1000.0,0.00037426,7]
[399925961,1766880658866,-1000.0,0.00037468,7]
[399925962,1766880658877,-150.0,0.00037468,7]
[399925963,1766880658887,-500.0,0.00037534,9]
[399925964,1766880658898,-500.0,0.00037534,9]
[399925965,1766880658908,-500.0,0.00037534,9]
[399925966,1766880658919,-150.0,0.00037542,7]
[399925967,1766880658930,-150.0,0.00037558,7]
[399925968,1766880658942,-1000.0,0.00037572,7]
[399925969,1766880658955,-1000.0,0.00037579,7]
[399925970,1766880658965,-1000.0,0.00037591,7]
[399925971,1766880658977,-1000.0,0.00037618,7]
[399925972,1766880658988,-1000.0,0.00037643,7]
[399925973,1766880658999,-1000.0,0.0003765,7]
[399925974,1766880659011,-2064.24,0.000377,14]
[399925975,1766880659024,-266.57,0.000377,14]
[399925976,1766880659036,-1000.0,0.000377,7]
[399925977,1766880659048,-1000.0,0.00037705,7]
[399925978,1766880659061,-1000.0,0.00037718,7]
[399925979,1766880659073,-300.0,0.00037719,2]
[399925980,1766880659085,-176.60061542,0.00037722,7]
[399925981,1766880659099,-150.0,0.00037724,7]
[399925982,1766880659110,-1000.0,0.0003773,7]
[399925983,1766880659122,-150.0,0.00037766,7]
[399925984,1766880659133,-964.00244786,0.00037774,7]
[399925985,1766880659145,-500.0,0.00037808,9]
[399925986,1766880659157,-999.0,0.00037808,120]
[399925987,1766880659168,-500.0,0.00037808,9]
[399925988,1766880659179,-500.0,0.00037808,9]
[399925989,1766880659191,-2000.0,0.0003781,3]
[399925990,1766880659201,-703.1319,0.0003781,3]
[399925991,1766880659212,-150.0,0.00037811,7]
[399925992,1766880659222,-150.0,0.00037836,7]
[399925993,1766880659233,-1000.0,0.0003786,7]
[399925994,1766880659243,-150.0,0.00037879,7]
[399925995,1766880659254,-150.0,0.00037926,7]
[399925996,1766880659265,-1000.0,0.00037947,7]
[399925997,1766880659276,-400.0,0.0003797,2]
[399925998,1766880659287,-150.0,0.00037978,7]
[399925999,1766880659298,-300.0,0.00037989,2]
[399926000,1766880659310,-400.0,0.00037999,120]
[399926001,1766880659320,-1000.0,0.00037999,2]
[399926002,1766880659331,-1000.0,0.00037999,7]
[399926003,1766880659342,-1000.0,0.00037999,38]
[399926004,1766880659353,-186.66093114,0.00037999,38]
[399926005,1766880659365,-500.0,0.00037999,38]
[399926006,1766880659376,-553.64373807,0.00037999,38]
[399926007,1766880659387,-500.0,0.00037999,38]
[399926008,1766880659397,-709.38527061,0.00037999,38]
[399926009,1766880659407,-151.0,0.00037999,38]
[399926010,1766880659418,-163.99770421,0.00037999,38]
[399926011,1766880659430,-151.0,0.00037999,38]
[399926012,1766880659441,-190974.8726423,0.00038,3]
[399926013,1766880659452,-2000.0,0.00038,30]
[399926014,1766880659463,-6589.0,0.00038,30]
[399926015,1766880659474,-160.0,0.00038,24]
[399926016,1766880659488,-160.0,0.00038,24]
[399926017,1766880659506,-226.0,0.00038,24]
[399926018,1766880659516,-500.0,0.00038,14]
[399926019,1766880659527,-500.0,0.00038,14]
[399926020,1766880659538,-500.0,0.00038,14]
[399926021,1766880659548,-150.0,0.00038,17]
[399926022,1766880659559,-500.0,0.00038082,9]
[399926023,1766880659570,-500.0,0.00038082,9]
[399926024,1766880659581,-211.54,0.00038082,9]
[399926025,1766880659591,-818.0,0.00038168,20]
[399926026,1766880659601,-1000.0,0.00038239,51]
[399926027,1766880659612,-1000.0,0.00038239,51]
[399926028,1766880659623,-500.0,0.00038239,51]
[399926029,1766880659634,-500.0,0.00038239,51]
[399926030,1766880659644,-500.0,0.00038239,51]
[399926031,1766880659655,-500.0,0.00038239,51]
[399926032,1766880659665,-194.72792766,0.00038239,51]
[399926033,1766880659676,-533.88981491,0.00038239,51]
[399926034,1766880659687,-250.0,0.00038239,51]
[399926035,1766880659698,-250.0,0.00038239,51]
[399926036,1766880659708,-500.0,0.00038239,51]
[399926037,1766880659719,-670.58624095,0.00038239,51]
[399926038,1766880659730,-250.0,0.00038239,51]
[399926039,1766880659741,-250.0,0.00038239,51]
[399926040,1766880659751,-151.0,0.00038239,51]
[399926041,1766880659762,-151.0,0.00038239,51]
[399926042,1766880659773,-250.0,0.00038239,51]
[399926043,1766880659784,-151.0,0.00038239,51]
[399926044,1766880659797,-500.0,0.00038239,51]
[399926045,1766880659808,-500.0,0.00038239,51]
[399926046,1766880659818,-200.0,0.00038247,30]
[399926047,1766880659829,-1000.0,0.00038273,2]
[399926048,1766880659840,-500.0,0.00038356,9]
[399926049,1766880659851,-500.0,0.00038356,9]
[399926050,1766880659862,-400.0,0.00038356,120]
[399926051,1766880659873,-162.56546136,0.00038356,30]
[399926052,1766880659884,-894.7,0.00038379,5]
[399926053,1766880659896,-300.272211,0.00038403,89]
[399926054,1766880659907,-5800.0,0.00038416,2]
[399926055,1766880659917,-5800.0,0.00038425,2]
[399926056,1766880659928,-5800.0,0.00038433,2]
[399926057,1766880659939,-5800.0,0.00038442,2]
[399926058,1766880659950,-5800.0,0.0003845,2]
[399926059,1766880659961,-5800.0,0.00038459,2]
[399926060,1766880659972,-5800.0,0.00038467,2]
[399926061,1766880659983,-5800.0,0.00038476,2]
[399926062,1766880659994,-5800.0,0.00038484,2]
[399926063,1766880660004,-4010.0,0.000385,2]
[399926064,1766880660016,-818.0,0.00038561,20]
[399926065,1766880660027,-400.0,0.0003857,2]
[399926066,1766880660039,-601.38,0.000386,6]
[399926067,1766880660049,-500.0,0.0003863,9]
[399926068,1766880660060,-500.0,0.0003863,9]
[399926069,1766880660072,-203988.02335329,0.000388,120]
[399926070,1766880660083,-713.94322956,0.000388,120]
[399926071,1766880660094,-2010.0,0.000389,4]
[399926072,1766880660104,-18537.48044157,0.000389,10]
[399926073,1766880660115,-597.83589344,0.000389,2]
[399926074,1766880660126,-571.44988293,0.000389,2]
[399926075,1766880660137,-1724.93499586,0.000389,2]
[399926076,1766880660148,-1963.35852952,0.000389,2]
[399926077,1766880660158,-823.27476095,0.000389,2]
[399926078,1766880660169,-190.56396834,0.000389,2]
[399926079,1766880660179,-500.0,0.00038904,9]
[399926080,1766880660189,-999.0,0.00038904,120]
[399926081,1766880660200,-500.0,0.00038904,9]
[399926082,1766880660210,-1499.24,0.00038904,2]
[399926083,1766880660221,-1000.0,0.00038931,30]
[399926084,1766880660232,-1000.0,0.00038931,30]
[399926085,1766880660243,-500.0,0.00038931,30]
[399926086,1766880660253,-592.43349054,0.00038931,30]
[399926087,1766880660264,-500.0,0.00038931,30]
[399926088,1766880660275,-500.0,0.00038931,30]
[399926089,1766880660285,-500.0,0.00038931,30]
[399926090,1766880660297,-187.78006525,0.00038931,30]
[399926091,1766880660308,-514.84070869,0.00038931,30]
[399926092,1766880660319,-250.0,0.00038931,30]
[399926093,1766880660330,-250.0,0.00038931,30]
[399926094,1766880660341,-500.0,0.00038931,30]
[399926095,1766880660352,-646.65982734,0.00038931,30]
[399926096,1766880660363,-250.0,0.00038931,30]
[399926097,1766880660723,-250.0,0.00038931,30]
[399926098,1766880660740,-151.0,0.00038931,30]
[399926099,1766880660750,-151.0,0.00038931,30]
[399926100,1766880660759,-250.0,0.00038931,30]
[399926101,1766880660768,-151.0,0.00038931,30]
[399926102,1766880660778,-500.0,0.00038931,30]
[399926103,1766880660787,-500.0,0.00038931,30]
[399926104,1766880660798,-818.0,0.00038955,20]
[399926105,1766880660811,-151.0,0.00038959,60]
[399926106,1766880660821,-151.0,0.00038959,60]
[399926107,1766880660830,-233.797776,0.00038959,60]
[399926108,1766880660840,-400.0,0.0003897,2]
[399926109,1766880660850,-400.0,0.0003897,2]
[399926110,1766880660860,-508.68741303,0.0003897,2]
[399926111,1766880660870,-1000.0,0.00038972,30]
[399926112,1766880660879,-1000.0,0.00038972,30]
[399926113,1766880660889,-500.0,0.00038972,30]
[399926114,1766880660898,-600.0,0.00038972,30]
[399926115,1766880660908,-500.0,0.00038972,30]
[399926116,1766880660917,-500.0,0.00038972,30]
[399926117,1766880660927,-500.0,0.00038972,30]
[399926118,1766880660936,-181.08010149,0.00038972,30]
[399926119,1766880660946,-496.47127164,0.00038972,30]
[399926120,1766880660956,-250.0,0.00038972,30]
[399926121,1766880660966,-250.0,0.00038972,30]
[399926122,1766880660976,-500.0,0.00038972,30]
[399926123,1766880660986,-623.58710448,0.00038972,30]
[399926124,1766880660996,-250.0,0.00038972,30]
[399926125,1766880661007,-250.0,0.00038972,30]
[399926126,1766880661027,-151.0,0.00038972,30]
[399926127,1766880661037,-151.0,0.00038972,30]
[399926128,1766880661047,-250.0,0.00038972,30]
[399926129,1766880661056,-151.0,0.00038972,30]
[399926130,1766880661066,-500.0,0.00038972,30]
[399926131,1766880661076,-255.10704705,0.00038972,30]
[399926132,1766880661086,-500.0,0.00038972,30]
[399926133,1766880661096,-1088.69142798,0.00038997,120]
[399926134,1766880661105,-1000.0,0.00038998,30]
[399926135,1766880661114,-1000.0,0.00038998,30]
[399926136,1766880661123,-500.0,0.00038998,30]
[399926137,1766880661133,-600.0,0.00038998,30]
[399926138,1766880661142,-500.0,0.00038998,30]
[399926139,1766880661152,-500.0,0.00038998,30]
[399926140,1766880661161,-500.0,0.00038998,30]
[399926141,1766880661170,-174.61919141,0.00038998,30]
[399926142,1766880661180,-478.75725327,0.00038998,30]
[399926143,1766880661190,-250.0,0.00038998,30]
[399926144,1766880661200,-250.0,0.00038998,30]
[399926145,1766880661209,-500.0,0.00038998,30]
[399926146,1766880661219,-601.3376128,0.00038998,30]
[399926147,1766880661228,-250.0,0.00038998,30]
[399926148,1766880661237,-250.0,0.00038998,30]
[399926149,1766880661247,-151.0,0.00038998,30]
[399926150,1766880661257,-151.0,0.00038998,30]
[399926151,1766880661267,-250.0,0.00038998,30]
[399926152,1766880661278,-151.0,0.00038998,30]
[399926153,1766880661287,-500.0,0.00038998,30]
[399926154,1766880661297,-220.0,0.00038998,30]
[399926155,1766880661307,-500.0,0.00038998,30]
[399926156,1766880661316,-3810.68951885,0.00038998,4]
[399926157,1766880661325,-488.47337453,0.00038999,2]
[399926158,1766880661335,-4151.67290047,0.00038999,2]
[399926159,1766880661344,-500.0,0.00038999,31]
[399926160,1766880661354,-500.0,0.00038999,31]
[399926161,1766880661363,-6888.0,0.00038999,31]
[399926162,1766880661372,-1000.0,0.00038999,31]
[399926163,1766880661381,-600.0,0.00038999,31]
[399926164,1766880661391,-1000.0,0.00038999,31]
[399926165,1766880661400,-518.5,0.00038999,39]
[399926166,1766880661409,-500.0,0.00038999,39]
[399926167,1766880661419,-859.66568328,0.00038999,39]
[399926168,1766880661428,-1000.0,0.00038999,39]
[399926169,1766880661438,-1000.0,0.00038999,39]
[399926170,1766880661447,-600.0,0.00038999,39]
[399926171,1766880661456,-500.0,0.00038999,31]
[399926172,1766880661466,-537.6845,0.00038999,49]
[399926173,1766880661475,-1000.0,0.00038999,49]
[399926174,1766880661484,-1000.0,0.00038999,49]
[399926175,1766880661494,-500.0,0.00038999,49]
[399926176,1766880661503,-600.0,0.00038999,49]
[399926177,1766880661512,-500.0,0.00038999,39]
[399926178,1766880661522,-557.5788265,0.00038999,59]
[399926179,1766880661531,-1000.0,0.00038999,59]
[399926180,1766880661540,-1000.0,0.00038999,59]
[399926181,1766880661550,-500.0,0.00038999,59]
[399926182,1766880661560,-500.0,0.00038999,49]
[399926183,1766880661570,-600.0,0.00038999,59]
[399926184,1766880661579,-500.0,0.00038999,59]
[399926185,1766880661588,-151.0,0.00038999,31]
[399926186,1766880661598,-500.0,0.00038999,31]
[399926187,1766880661607,-500.0,0.00038999,31]
[399926188,1766880661616,-151.0,0.00038999,39]
[399926189,1766880661626,-500.0,0.00038999,39]
[399926190,1766880661636,-500.0,0.00038999,39]
[399926191,1766880661645,-500.0,0.00038999,49]
[399926192,1766880661654,-500.0,0.00038999,49]
[399926193,1766880661663,-500.0,0.00038999,59]
[399926194,1766880661672,-500.0,0.00038999,59]
[399926195,1766880661681,-151.0,0.00038999,31]
[399926196,1766880661690,-156.587,0.00038999,39]
[399926197,1766880661699,-414.0,0.00038999,31]
[399926198,1766880661709,-162.380719,0.00038999,49]
[399926199,1766880661718,-250.0,0.00038999,31]
[399926200,1766880661728,-250.0,0.00038999,31]
[399926201,1766880661738,-429.318,0.00038999,39]
[399926202,1766880661748,-168.3888056,0.00038999,59]
[399926203,1766880661757,-250.0,0.00038999,39]
[399926204,1766880661766,-250.0,0.00038999,39]
[399926205,1766880661776,-445.202766,0.00038999,49]
[399926206,1766880661785,-250.0,0.00038999,49]
[399926207,1766880661795,-250.0,0.00038999,49]
[399926208,1766880661804,-461.67526834,0.00038999,59]
[399926209,1766880661814,-250.0,0.00038999,59]
[399926210,1766880661824,-500.0,0.00038999,31]
[399926211,1766880661835,-250.0,0.00038999,59]
[399926212,1766880661845,-500.0,0.00038999,39]
[399926213,1766880661856,-500.0,0.00038999,49]
[399926214,1766880661866,-500.0,0.00038999,59]
[399926215,1766880661877,-520.0,0.00038999,31]
[399926216,1766880661886,-1500.0,0.00038999,31]
[399926217,1766880661897,-539.24,0.00038999,39]
[399926218,1766880661907,-559.19188,0.00038999,49]
[399926219,1766880661917,-579.88197956,0.00038999,59]
[399926220,1766880661928,-250.0,0.00038999,31]
[399926221,1766880661938,-250.0,0.00038999,39]
[399926222,1766880661949,-250.0,0.00038999,31]
[399926223,1766880661959,-151.0,0.00038999,31]
[399926224,1766880661969,-250.0,0.00038999,49]
[399926225,1766880661980,-250.0,0.00038999,39]
[399926226,1766880661991,-151.0,0.00038999,31]
[399926227,1766880662001,-250.0,0.00038999,31]
[399926228,1766880662012,-10000.0,0.00038999,31]
[399926229,1766880662022,-151.0,0.00038999,39]
[399926230,1766880662033,-250.0,0.00038999,59]
[399926231,1766880662043,-250.0,0.00038999,49]
[399926232,1766880662054,-151.0,0.00038999,39]
[399926233,1766880662064,-250.0,0.00038999,39]
[399926234,1766880662074,-10000.0,0.00038999,31]
[399926235,1766880662085,-151.0,0.00038999,49]
[399926236,1766880662095,-250.0,0.00038999,59]
[399926237,1766880662105,-151.0,0.00038999,49]
[399926238,1766880662115,-250.0,0.00038999,49]
[399926239,1766880662125,-1596.32765525,0.00038999,49]
[399926240,1766880662134,-151.0,0.00038999,59]
[399926241,1766880662144,-151.0,0.00038999,59]
[399926242,1766880662154,-151.0,0.00038999,31]
[399926243,1766880662164,-250.0,0.00038999,59]
[399926244,1766880662174,-151.0,0.00038999,39]
[399926245,1766880662184,-151.0,0.00038999,49]
[399926246,1766880662194,-151.0,0.00038999,59]
[399926247,1766880662204,-500.0,0.00038999,31]
[399926248,1766880662214,-500.0,0.00038999,39]
[399926249,1766880662223,-500.0,0.00038999,49]
[399926250,1766880662233,-220.0,0.00038999,31]
[399926251,1766880662244,-500.0,0.00038999,59]
[399926252,1766880662254,-220.0,0.00038999,39]
[399926253,1766880662264,-220.0,0.00038999,49]
[399926254,1766880662274,-220.0,0.00038999,59]
[399926255,1766880662284,-500.0,0.00038999,31]
[399926256,1766880662295,-500.0,0.00038999,39]
[399926257,1766880662305,-500.0,0.00038999,49]
[399926258,1766880662316,-500.0,0.00038999,59]
[399926259,1766880662326,-1234.0,0.00038999,31]
[399926260,1766880662336,-925.49464164,0.00038999,39]
[399926261,1766880662347,-300.0,0.00038999,31]
[399926262,1766880662356,-311.1,0.00038999,39]
[399926263,1766880662366,-50000.0,0.00039,39]
[399926264,1766880662375,-50000.0,0.00039,49]
[399926265,1766880662385,-50000.0,0.00039,29]
[399926266,1766880662395,-3924.31330781,0.00039,31]
[399926267,1766880662404,-502896.87787024,0.00039,2]
[399926268,1766880662615,-151.0,0.00016,2]
[399926269,1766880662625,-151.0,0.00016507,2]
[399926270,1766880662636,-1110.797667,0.00027397,7]
[399926271,1766880662647,-348125.76722797,0.00039,2]
[399926272,1766880662818,-1294.93495063,0.00018593,2]
[399926273,1766880662831,-5242.06504937,0.00018593,2]
[399926274,1766880662841,-6537.0,0.00021593,2]
[399926275,1766880662851,-5634.91656014,0.00024593,2]
[399926276,1766880662919,-902.08343986,0.00024593,2]
[399926277,1766880662929,-1110.797667,0.00027397,7]
[399926278,1766880662940,-1110.797667,0.00027397,7]
[399926279,1766880662950,-1110.797667,0.00027397,7]
[399926280,1766880662960,-1110.797667,0.00027397,7]
[399926281,1766880662971,-1110.797667,0.00027397,7]
[399926282,1766880662981,-1110.797667,0.00027397,7]
[399926283,1766880662994,-1110.797667,0.00027397,7]
[399926284,1766880663004,-1110.797667,0.00027397,7]
[399926285,1766880663014,-1110.797658,0.00027397,7]
[399926286,1766880663024,-3296.275,0.00027593,2]
[399926287,1766880663034,-232.27152976,0.000279,5]
[399926288,1766880663044,-338.58723435,0.000279,2]
[399926289,1766880663055,-659.86,0.00032301,2]
[399926290,1766880663065,-151.0,0.00034822,2]
[399926291,1766880663075,-151.0,0.00034822,2]
[399926292,1766880663086,-500.0,0.00035616,9]
[399926293,1766880663096,-400.0,0.0003589,9]
[399926294,1766880663106,-408429.18250297,0.00039,2]
[399926295,1766880663128,-1832.60528,0.00039,2]
[399926296,1766880663139,-4165.21187301,0.00039,2]
[399926297,1766880663154,-6163.03236816,0.00039,2]
[399926298,1766880663167,-744411.97889959,0.00039,2]
[399926299,1766880663186,-151.0,0.000354,2]
[399926300,1766880663196,-280.431,0.00039,2]
[399926301,1766880663209,-365311.9099848,0.00039,2]
[399926302,1766880663219,-250.54436005,0.00039,3]
[399926303,1766880663228,-386794.02006764,0.00039,2]
[399926304,1766880663252,-232.27152976,0.000389,7]
[399926305,1766880663262,-17.72847024,0.00039,2]
[399926577,1766881831495,-166.66,0.00013856,2]
[399926578,1766881831506,-2001.75654942,0.00014002,2]
[399926579,1766881831612,-147.72567104,0.00014002,2]
[399926580,1766881831622,-166.66,0.00014148,2]
[399926581,1766881831632,-166.66,0.0001444,2]
[399926582,1766881831642,-107.00955813,0.00014694,2]
[399926583,1766881831654,-341.348914,0.00014694,2]
[399926584,1766881831666,-51.64152787,0.00014694,2]
[399926585,1766881831676,-166.66,0.00014731,2]
[399926586,1766881831685,-70.84690239,0.0001482,2]
[399926587,1766881831696,-4129.08309761,0.0001482,2]
[399926588,1766881831706,-1179.77826848,0.00014891,2]
[399926592,1766881831819,-414.95473152,0.00014891,2]
[399926593,1766881831829,-300.0,0.00014984,2]
[399926594,1766881831838,-1200.0,0.00014984,2]
[399926595,1766881831847,-214.15037368,0.00014985,2]
[399926596,1766881831857,-284.51043464,0.00014985,2]
[399926597,1766881831870,-1431.68654969,0.00014985,2]
[399926598,1766881831879,-182.79322021,0.00015,14]
[399926599,1766881831891,-612.89013257,0.00015,14]
[399926600,1766881831901,-124.95986743,0.00015,2]
[399926601,1766881831912,-3041.31296243,0.00015,2]
[399926721,1766881837652,-150.0,0.00014311,2]
[399926722,1766881837663,-4784.05284662,0.00015,2]
[399926723,1766881837673,-166.66,0.00015023,2]
[399926724,1766881837683,-572.40698747,0.0001503,2]
[399926725,1766881837693,-500.0,0.0001503,2]
[399926726,1766881837703,-184.1000125,0.0001503,2]
[399926727,1766881837712,-297.22815507,0.0001503,2]
[399926728,1766881837721,-500.0,0.0001503,2]
[399926729,1766881837732,-500.0,0.0001503,2]
[399926730,1766881837742,-500.0,0.0001503,2]
[399926731,1766881837751,-575.18647689,0.0001503,2]
[399926732,1766881837761,-500.0,0.0001503,2]
[399926733,1766881837771,-617.5799937,0.0001503,2]
[399926734,1766881837781,-300.0,0.0001503,2]
[399926735,1766881837791,-7432.78552774,0.00015031,2]
[399926736,1766881837803,-403.082,0.00015031,2]
[399926737,1766881837815,-992164.13247226,0.00015031,2]
[399926738,1766881837825,-1520.9302,0.00015095,2]
[399926739,1766881837835,-512.43076584,0.00015131,2]
[399926740,1766881837845,-21177.40092532,0.00015131,2]